Workbook

Sheet pinmoney
A2: Wednesday Fun Fours bowling league at Double Decker Lanes 2022/23 season
C4: Prize Fund | G4: Secretary fund
A5: (4*12*30*$3.00) | C5: =(4*12*30*3) -> 4320.00 | E5: 4*12*30*$1.00= | G5: =4*12*30 -> 1440.00
A6: - corrections wk1-wk30 | C6: =2*3 -> 6.00 | G6: 2.00
C9: ========== | G9: ==========
A10: corrected total= | C10: =C5-SUM(C6:C8) -> 4314.00 | G10: =G5-SUM(G6:G8) -> 1438.00
A11: minus awards budget | C11: =B68 -> 1200.00 | D11: from page 2
A12: - misc. expenses | C12: 0.00
A13: -other losses | C13: 0.00
C14: ==========
C15: =C10-SUM(C11:C13) -> 3114.00
A17: Wednesday Fun Fours Pinmoney 2022/23 season: (prize fund - trophies) / total wins
B18: =C15 -> 3114.00 | C18: divided By | D18: =B35 -> 725 | E18: equals: | F18: =ROUND(B18/B35,5) -> 4.29517 | G18: per win
C20: wins*per | E20: per person, per wk
A21: Team# | B21: total wins: | C21: win amt | D21: / by 4 | E21: / by 120 | F21: (4 *30)=120
A22: 1 | B22: 65 | C22: =ROUND(B22*$F$18,0) -> 279.00 | D22: =C22/4 -> 69.75 | E22: =ROUND(C22/120,4) -> 2.3250 | F22: **
A23: 2 | B23: 61 | C23: =ROUND(B23*$F$18,0) -> 262.00 | D23: 65.50 | E23: =ROUND(C23/120,4) -> 2.1833 | F23: **
A24: 3 | B24: 62 | C24: =ROUND(B24*$F$18,0) -> 266.00 | D24: 66.50 | E24: 2.2167
A25: 4 | B25: 67 | C25: 288.00 | D25: 72.00 | E25: 2.4000 | F25: **
A26: 5 | B26: 65.5 | C26: 281.00 | D26: 70.25 | E26: 2.3417
A27: 6 | B27: 63 | C27: 271.00 | D27: 67.75 | E27: 2.2583 | F27: **
A28: 7 | B28: 50.5 | C28: 217.00 | D28: 54.25 | E28: 1.8083
A29: 8 | B29: 62.5 | C29: 268.00 | D29: 67.00 | E29: 2.2333
A30: 9 | B30: 70 | C30: 301.00 | D30: 75.25 | E30: 2.5083 | F30: **
A31: 10 | B31: 58.5 | C31: 251.00 | D31: 62.75 | E31: 2.0917
A32: 11 | B32: 49 | C32: 210.00 | D32: 52.50 | E32: 1.7500
A33: 12 | B33: 51 | C33: 219.00 | D33: 54.75 | E33: 1.8250
B34: ========= | C34: =========
A35: actual -------> | B35: =SUM(B22:B33) -> 725 | C35: =SUM(C22:C33) -> 3113.00
A36: total possible | B36: 4*7*2+4*6*28 | C36: =4*7*2+4*6*28 -> 728
A37: ** Additional calculations were needed to determine this amount -see additional
A38: sheet in your team envelope (if needed)
A40: Wednesday Fun Fours 2022/23 season
A41: Trophies and awards Budget
A42: (proposed guideline; actual amounts determined by prize committee)
A44: Team awards:
A46: 1st place: | B46: 4*60.00= | C46: =4*60 -> 240
A47: 2nd place: | B47: 4*40.00= | C47: =4*40 -> 160
A48: 3rd place: | B48: 4*30.00= | C48: =4*30 -> 120
A49: 4th place: | B49: 4*25.00= | C49: =4*25 -> 100
C50: ==========
C51: =SUM(C46:C49) -> 620
A53: Individual awards:
D55: Men: | G55: Women:
A56: high scratch series: | D56: 60 | G56: 60
A57: high scratch game: | D57: 50 | G57: 50
A58: high handicap series: | D58: 40 | G58: 40
A59: high handicap game: | D59: 30 | G59: 30
A60: high average | D60: 10 | G60: 10
A61: most improved average: | D61: 10 | G61: 10 | H61: =C51+SUM(D56:G61) -> 1020
A62: perfect attendance: | D62: 40 | G62: 40
A63: misc. awards: | D63: 30 | G63: 30
A64: misc. supplies&costs: | D64: 20 | G64: 20
A68: grand total: | B68: =SUM(C46:C49)+SUM(D56:D64)+SUM(G56:G64) -> 1200.00
A70: Summary:
B71: expenses | F71: checking account monies
B72: =C35 -> 3113.00 | C72: team pin money pay out amt. | F72: 6748.48 | G72: balance as of 04/13/2023
B73: 0.00 | C73: USBC card/s still owed | F73: 0 | G73: other
B74: =B68 -> 1200.00 | C74: Awards | F74: ==========
B75: =G10 -> 1438.00 | C75: secretary money | F75: =F72-F73 -> 6748.48
B76: =4*12*4 -> 192.00 | C76: Sweeper Awards | F76: =D105 -> 31.00 | G76: arrearages (held out)
B77: =4*12*18 -> 864.00 | C77: Sweeper Lineage wk31 | F77: =E105 -> 194.00 | G77: owed sweeper (held out)
B78: 30.25 | C78: other expenses - Bank Checks
B79: ==========
B80: =SUM(B72:B77) -> 6807.00 | C80: total | F80: ==========
F81: =F75+F76+F77 -> 6973.48
A82: _____________________________________________________________________________________________
B83: =F81 -> 6973.48 | C83: checking accout monies
B84: =B80 -> 6807.00 | C84: minus expenses
B85: =========
B86: =B83-B84 -> 166.48 | C86: balance carried over to the 2023/2024 season
A90: Money to hold out of team's Pin Money | E90: owe for | F90: Individual
D91: arrearages | E91: sweeper | F91: Total | G91: Team total:
A92: Team 1 | B92: Michael Slinsen | E92: 22 | G92: =E92 -> 22
A94: Team 2 | B94: Sterling Grey | E94: 18
B95: Anthony Farnsworth | E95: 22
B96: James Willin | E96: 22
B97: Spencer Willin | E97: 22 | G97: =SUM(E94:E97) -> 84
A99: Team 9 | B99: Bernard O'Cop | D99: 1 | E99: 22 | F99: =SUM(D99:E99) -> 23
B100: Ken Hanover | D100: 14 | E100: 22 | F100: =SUM(D100:E100) -> 36
B101: Mat Hanover | D101: 10 | E101: 22 | F101: 32
B102: Blake Russell | D102: 6 | E102: 22 | F102: 28 | G102: =SUM(D99:E102) -> 119
D104: ======= | E104: ======= | G104: ==========
D105: =SUM(D92:D103) -> 31 | E105: =SUM(E92:E103) -> 194 | G105: =SUM(D92:E103) -> 225
A111: =C35 -> 3113.00 | B111: pin money total
A112: =G105 -> 225.00 | B112: minus, money held back
A114: ==========
A115: =A111-A112 -> 2888.00 | B115: net amount of cash
A116: 1200.00 | B116: awards cash
A117: =B76 -> 192.00 | B117: sweeper night
A118: ==========
A119: =SUM(A115:A117) -> 4280.00
B125: Wednesday Fun Fours
B126: Checking Account#: 108-0040783
B127: Cash withdrawal needed on 4/18/2023 by around 10:00 AM
A129: money needed= | C129: =ROUND(A119,0) -> $4,280.00
B131: singles | C131: 5 | D131: X 1 = | E131: =C131 -> 5.00
B132: ones | C132: 3 | D132: X 25 = | E132: =C132*25 -> 75.00
B133: fives | C133: 5 | D133: X 100 = | E133: =C133*100 -> 500.00
B134: tens | C134: 6 | D134: X 200 = | E134: =C134*200 -> 1200.00
B135: twenties | C135: 5 | D135: X 500 = | E135: =C135*500 -> 2500.00
E136: ========
E137: =SUM(E131:E135) -> $4,280.00
B138: difference= | C138: =C129-E137 -> 0
B140: Contact:
B141: John Orcutt
B142: cell phone#: 707-695-8024
B143: email: jorcutt@sonic.net
B144: fax#: 707-595-5474

Sheet actual money awards
A1: Wednesday Fun Fours: Actual Awards Given out amounts 4/19/2023
A2: 1st Place | B2: 4*60 | C2: Pour Decisions TBD | D2: =4*60 -> 240
A3: 2nd Place | B3: 4*40 | C3: Narrowing It Down TBD | D3: =4*40 -> 160
A4: 3rd: Place | B4: 4*30 | C4: Team To Beat TBD | D4: =4*30 -> 120
A5: 4th: Place | B5: 4*25 | C5: Death Row PinMates TBD | D5: =4*25 -> 100 | E5: =SUM(D2:D5) -> 620
A7: high scratch seriesM: | C7: Mike Schirman 771 | D7: 60
A8: high scratch seriesW: | C8: Patty Green 584 | D8: 60 | E8: =SUM(D7:D8) -> 120
A10: high scratch gameM: | C10: Kenny Mosser 299 | D10: 50
A11: high scratch gameW: | C11: Jenny Carretero 201 | D11: 50 | E11: =SUM(D10:D11) -> 100
A13: high handicap seriesM: | C13: Tim Lewallen 821 | D13: 40
A14: high handicap seriesW: | C14: Cindi White 769 | D14: 40 | E14: =SUM(D13:D14) -> 80
A16: high handicap gameM: | C16: Sean Robinson 340 | D16: 30
A17: high handicap gameW: | C17: Josie Bisler 278 | D17: 30 | E17: =SUM(D16:D17) -> 60
A19: High AverageM: | C19: Kenny Mosser 204 | D19: 15
A20: High AverageW: | C20: Patty Green 161 | D20: 15 | E20: =SUM(D19:D20) -> 30
A22: most improved averageM: | C22: Kenny Mosser +18.92 | D22: 15
A23: most improved averageW: | C23: MaryEllen Wernet +12.74 | D23: 15 | E23: =SUM(D22:D23) -> 30
A25: perfect attendance: | C25: Anthony Farnsworth | D25: 10
C26: Tammy Lang | D26: 10
C27: Cindi White | D27: 10
C28: Josie Bisler | D28: 10
C29: Mike Schirman | D29: 10
C30: Kenneth Hanover | D30: 10
C31: Matt Clark | D31: 10 | F31: =SUM(D25:D31) -> 70
A34: Gift Cash for League Officers (3 X 25) | D34: 75
F35: =SUM(D2:D34) -> 1185
C36: balance 1200-actual award total= | F36: =1200-F35 -> 15
A38: Sweeper Night awards ( Who _TBD) | D38: Men | E38: Women
A39: (High Handicap Series) | D39: 40 | E39: 40
D40: 30 | E40: 30
D41: 15 | E41: 15
D42: 11 | E42: 11
E43: total: | F43: =SUM(D39:E42) -> $192.00
A44: Six games over average, two concectutive weeks - 2022-2023:
A45: Everyone will receive a Certificate
A46: Devi Sharma
A47: Michael Slinsen
A48: Gregor Gonzales
A49: Andy Thomson
A50: Mike Doyel
A51: Kenny Mosser
A52: Cindi White
A53: Mary Ellen Wernet
A54: Ray Kummer
A55: Jose Bisler
A56: Ronnie Carretero
A57: Morgan Thomas
A58: Mike Schirman
A59: Kenneth Hanover
A60: Tom Woodard
A61: Jan Askew

Sheet 6_over_avg
A1: Six over average - 2 weeks (alphabetically & Team number)
D2: team | I2: team
A3: 1 | B3: Jan Askew | D3: 11 | F3: 1 | G3: Devi Sharma | I3: 1
A4: =A3+1 -> 2 | B4: Jose Bisler | D4: 7 | F4: =F3+1 -> 2 | G4: Michael Slinsen | I4: 1
A5: =A4+1 -> 3 | B5: Ronnie Carretero | D5: 7 | F5: =F4+1 -> 3 | G5: Gregor Gonzales | I5: 1
A6: 4 | B6: Mike Doyel | D6: 3 | F6: 4 | G6: Andy Thomson | I6: 3
A7: 5 | B7: Gregor Gonzales | D7: 1 | F7: 5 | G7: Mike Doyel | I7: 3
A8: 6 | B8: Kenneth Hanover | D8: 9 | F8: 6 | G8: Kenny Mosser | I8: 4
A9: 7 | B9: Ray Kummer | D9: 6 | F9: 7 | G9: Cindi White | I9: 5
A10: 8 | B10: Kenny Mosser | D10: 4 | F10: 8 | G10: Mary Ellen Wernet | I10: 5
A11: 9 | B11: Mike Schirman | D11: 8 | F11: 9 | G11: Ray Kummer | I11: 6
A12: 10 | B12: Devi Sharma | D12: 1 | F12: 10 | G12: Jose Bisler | I12: 7
A13: 11 | B13: Michael Slinsen | D13: 1 | F13: 11 | G13: Ronnie Carretero | I13: 7
A14: 12 | B14: Morgan Thomas | D14: 8 | F14: 12 | G14: Morgan Thomas | I14: 8
A15: 13 | B15: Andy Thomson | D15: 3 | F15: 13 | G15: Mike Schirman | I15: 8
A16: 14 | B16: Mary Ellen Wernet | D16: 5 | F16: 14 | G16: Kenneth Hanover | I16: 9
A17: 15 | B17: Cindi White | D17: 5 | F17: 15 | G17: Tom Woodard | I17: 10
A18: 16 | B18: Tom Woodard | D18: 10 | F18: 16 | G18: Jan Askew | I18: 11

Sheet sweeper night
B4: =pinmoney!A117 -> $192.00
C7: Men | D7: Women
C8: 40 | D8: 40
C9: 30 | D9: 30
C10: 15 | D10: 15
C11: 11 | D11: 11
D12: total: | E12: =SUM(C8:D11) -> $192.00
D13: difference | E13: =E12-B4 -> $0.00

Sheet actual money awards (2)
A1: Wednesday Fun Fours: Actual Awards Given out amounts 4/19/2023
A2: 1st Place | B2: 4*60 | C2: Team To Beat | D2: =4*60 -> 240
A3: 2nd Place | B3: 4*40 | C3: Narrowing It Down | D3: =4*40 -> 160
A4: 3rd: Place | B4: 4*30 | C4: Pour Decisions | D4: =4*30 -> 120
A5: 4th: Place | B5: 4*25 | C5: DeathRow PinMates | D5: =4*25 -> 100 | E5: =SUM(D2:D5) -> 620
A7: high scratch seriesM: | C7: Mike Schirman 771 | D7: 60
A8: high scratch seriesW: | C8: Patty Green 584 | D8: 60 | E8: =SUM(D7:D8) -> 120
A10: high scratch gameM: | C10: Kenny Mosser 299 | D10: 50
A11: high scratch gameW: | C11: Jenny Carretero 201 | D11: 50 | E11: =SUM(D10:D11) -> 100
A13: high handicap seriesM: | C13: Tim Lewallen 821 | D13: 40
A14: high handicap seriesW: | C14: Cindi White 769 | D14: 40 | E14: =SUM(D13:D14) -> 80
A16: high handicap gameM: | C16: Sean Robinson 340 | D16: 30
A17: high handicap gameW: | C17: Josie Bisler 278 | D17: 30 | E17: =SUM(D16:D17) -> 60
A19: High AverageM: | C19: Kenny Mosser 203 | D19: 15
A20: High AverageW: | C20: Patty Green 161 | D20: 15 | E20: =SUM(D19:D20) -> 30
A22: most improved averageM: | C22: Kenny Mosser +17.58 | D22: 15
A23: most improved averageW: | C23: Cindi White +12.57 | D23: 15 | E23: =SUM(D22:D23) -> 30
A25: perfect attendance: | C25: Anthony Farnsworth | D25: 10
C26: Tammy Lang | D26: 10
C27: Cindi White | D27: 10
C28: Josie Bisler | D28: 10
C29: Mike Schirman | D29: 10
C30: Kenneth Hanover | D30: 10
C31: Matt Clark | D31: 10
F32: =SUM(D25:D32) -> 70
A34: Gift Cash for League Officers (3 X 25) | D34: 75
E35: Total = | F35: =SUM(D2:D34) -> 1185
C36: balance $1200.00-total amount above= | F36: =1200-F35 -> 15
A38: Sweeper Night awards
A39: (High Handicap Series)
A44: Six games over average, two concectutive weeks - 2021-2022:
A45: Everyone will receive a Certificate
A46: Devi Sharma
A47: Michael Slinsen
A48: Gregor Gonzales
A49: Andy Thomson
A50: Mike Doyel
A51: Kenny Mosser
A52: Cindi White
A53: Mary Ellen Wernet
A54: Ray Kummer
A55: Jose Bisler
A56: Ronnie Carretero
A57: Morgan Thomas
A58: Mike Schirman
A59: Kenneth Hanover
A60: Tom Woodard
A61: Jan Askew
